fUSD/lending_fUSD_20240101
["ID","MTS","AMOUNT","RATE_DAILY","PERIOD"]
[309763794,1704101439816,-5555.11,0.00037447,5]
[309763795,1704101439827,-500.0,0.00037447,2]
[309763796,1704101439837,-946.67,0.00037447,2]
[309763797,1704101439847,-1390.72,0.00037447,2]
[309763798,1704101439858,-275.76791756,0.00037447,2]
[309763799,1704101439872,-224.23208244,0.00037447,2]
[309763800,1704101439882,-500.0,0.00037447,2]
[309763801,1704101439891,-65.63467042,0.00037447,2]
[309763802,1704101439905,-998.27802185,0.00037447,2]
[309763803,1704101441767,-252.97099992,0.00036799,2]
[309763804,1704101441817,-371.88200008,0.00036799,2]
[309763805,1704101441826,-500.0,0.00037173,2]
[309763806,1704101441836,-1843.59705843,0.00037447,2]
[309763807,1704101441850,-509.0702493,0.00037447,2]
[309763808,1704101441860,-764.7,0.00037447,2]
[309763809,1704101441869,-500.0,0.00037447,2]
[309763810,1704101441879,-495.4436675,0.00037447,2]
[309763811,1704101441889,-500.0,0.00037447,2]
[309763812,1704101441898,-500.0,0.00037447,2]
[309763813,1704101441907,-500.0,0.00037447,2]
[309763814,1704101441916,-549.8018,0.00037496,2]
[309763815,1704101441926,-2802.5387,0.00037496,2]
[309763816,1704101441935,-2112.13543291,0.00037496,2]
[309763819,1704101443328,-12.95509401,0.00037496,2]
[309763820,1704101443340,-780.28034897,0.00037496,2]
[309763821,1704101443361,-1253.95910241,0.00037496,2]
[309763822,1704101443374,-572.00348816,0.00037496,2]
[309763823,1704101443385,-1915.42603354,0.00037496,2]
[309763824,1704101443395,-3895.9439,0.00037496,2]
[309763825,1704101443405,-7111.1722,0.00037496,2]
[309763826,1704101443415,-276.6789,0.00037496,2]
[309763827,1704101443426,-303.55554,0.00037498,4]
[309763828,1704101443435,-200.0,0.000375,13]
[309763829,1704101443445,-500.0,0.000375,5]
[309763830,1704101443456,-500.0,0.00037511,2]
[309763831,1704101443466,-500.0,0.00037511,2]
[309763832,1704101443475,-252.1207,0.00037511,2]
[309763833,1704101443485,-500.0,0.00037533,2]
[309763834,1704101443495,-200.0,0.00037533,2]
[309763835,1704101443505,-500.0,0.00037596,2]
[309763836,1704101443514,-534.25,0.00037596,2]
[309763837,1704101443524,-500.0,0.00037596,2]
[309763838,1704101443533,-500.0,0.00037596,2]
[309763839,1704101443542,-158.5,0.00037596,2]
[309763840,1704101443552,-500.0,0.00037596,2]
[309763841,1704101443561,-500.0,0.00037596,2]
[309763842,1704101443570,-461.25,0.00037596,2]
[309763843,1704101443580,-500.0,0.00037596,2]
[309763844,1704101443589,-500.0,0.00037596,2]
[309763845,1704101443598,-500.0,0.00037596,2]
[309763846,1704101443608,-500.0,0.00037596,2]
[309763847,1704101443617,-500.0,0.00037596,2]
[309763848,1704101443626,-500.0,0.00037596,2]
[309763849,1704101443636,-500.0,0.00037596,2]
[309763850,1704101443645,-500.0,0.00037596,2]
[309763851,1704101443654,-500.0,0.00037596,2]
[309763852,1704101443664,-464.83977971,0.00037596,2]
[309763853,1704101443673,-500.0,0.00037596,2]
[309763854,1704101443682,-500.0,0.00037596,2]
[309763856,1704101443691,-373.43310963,0.00037596,2]
[309763858,1704101443700,-500.0,0.00037596,2]
[309763859,1704101443710,-500.0,0.00037596,2]
[309763860,1704101443719,-500.0,0.00037596,2]
[309763861,1704101443728,-500.0,0.00037596,2]
[309763862,1704101443737,-500.0,0.00037596,2]
[309763863,1704101443747,-500.0,0.00037596,2]
[309763864,1704101443756,-500.0,0.00037596,2]
[309763865,1704101443765,-500.0,0.00037596,2]
[309763866,1704101443774,-385.65,0.00037596,2]
[309763867,1704101443783,-500.0,0.00037596,2]
[309763868,1704101443792,-535.6,0.00037596,2]
[309763869,1704101443802,-500.0,0.00037596,2]
[309763870,1704101443811,-500.0,0.00037596,2]
[309763871,1704101443820,-500.0,0.00037596,2]
[309763872,1704101443830,-500.0,0.00037596,2]
[309763873,1704101443839,-500.0,0.00037596,2]
[309763874,1704101443849,-500.0,0.00037596,2]
[309763875,1704101443858,-500.0,0.00037596,2]
[309763876,1704101443867,-605.25,0.00037596,2]
[309763877,1704101443876,-649.63,0.00037596,2]
[309763878,1704101443885,-500.0,0.00037596,2]
[309763879,1704101443895,-500.0,0.00037596,2]
[309763880,1704101443904,-500.0,0.00037596,2]
[309763881,1704101443913,-500.0,0.00037596,2]
[309763882,1704101443923,-500.0,0.00037596,2]
[309763883,1704101443932,-600.37,0.00037596,2]
[309763884,1704101443941,-500.0,0.00037596,2]
[309763885,1704101443950,-500.0,0.00037596,2]
[309763886,1704101443959,-3777.4,0.00037596,5]
[309763887,1704101443968,-500.0,0.00037596,2]
[309763888,1704101443978,-500.0,0.00037596,2]
[309763889,1704101443987,-500.0,0.00037596,2]
[309763890,1704101443996,-422.53435695,0.00037596,2]
[309763891,1704101444005,-500.0,0.00037596,2]
[309763892,1704101444014,-500.0,0.00037596,2]
[309763893,1704101444023,-500.0,0.00037596,2]
[309763894,1704101444032,-500.0,0.00037596,2]
[309763895,1704101444042,-500.0,0.00037596,2]
[309763896,1704101444051,-500.0,0.00037596,2]
[309763897,1704101444062,-423.10011744,0.00037596,2]
[309763898,1704101444071,-500.0,0.00037596,2]
[309763899,1704101444080,-22032.2644,0.00037597,2]
[309763900,1704101444090,-85530.10160474,0.00037597,2]
[309763901,1704101444394,-1261.30129369,0.00037597,2]
[309763902,1704101444407,-998.45,0.00037597,2]
[309763903,1704101444418,-446.53762245,0.00037597,2]
[309763904,1704101444430,-7035.46880485,0.00037597,2]
[309763905,1704101444441,-4728.14067427,0.00037597,2]
[309763906,1704101444450,-953.07575729,0.00037597,2]
[309763907,1704101444462,-4981.07969794,0.00037597,2]
[309763908,1704101444473,-8336.99482614,0.00037597,2]
[309763911,1704101446396,-293.922,0.00036899,2]
[309763912,1704101446450,-206.078,0.00036899,2]
[309763913,1704101446460,-22901.84651863,0.00037597,2]
[309763914,1704101446470,-151.77777,0.00037598,4]
[309763915,1704101446479,-500.0,0.000376,13]
[309763916,1704101446489,-158.89,0.00037615,2]
[309763917,1704101446498,-159.42,0.00037641,2]
[309763918,1704101446508,-500.0,0.00037666,2]
[309763919,1704101446517,-27632.45598927,0.00037695,2]
[309763920,1704101446529,-1784.22072226,0.00037695,2]
[309763921,1704101446611,-808.88975251,0.00037695,2]
[309764130,1704102631532,-206.0,0.00029677,2]
[309764131,1704102631542,-155.0,0.0003,2]
[309764132,1704102631552,-150.0,0.00030399,2]
[309764133,1704102631562,-23822.63726647,0.000304,2]
[309764134,1704102631647,-282.07001,0.000304,2]
[309764135,1704102631754,-536.29272353,0.000304,2]
[309764136,1704102631764,-158.82091954,0.000309,2]
[309764137,1704102631774,-14774.52668052,0.00031,2]
[309764138,1704102631783,-566.65759815,0.00032,4]
[309764139,1704102631793,-200.13,0.00032325,2]
[309764140,1704102631803,-1253.35240784,0.00033027,10]
[309764141,1704102631813,-2569.69,0.00033488,2]
[309764142,1704102631823,-500.0,0.00033488,2]
[309764143,1704102631832,-531.87,0.00033488,2]
[309764144,1704102631842,-156.59,0.00033739,2]
[309764145,1704102631852,-156.59,0.00033837,2]
[309764146,1704102631862,-156.59,0.00033935,2]
[309764147,1704102631871,-1000.0,0.00034,4]
[309764148,1704102631880,-156.59,0.00034032,2]
[309764149,1704102631889,-154.35,0.00034095,2]
[309764150,1704102631899,-156.59,0.0003413,2]
[309764151,1704102631908,-250.0,0.00034138,2]
[309764152,1704102631917,-500.0,0.00034141,2]
[309764153,1704102631926,-580.16,0.00034148,2]
[309764154,1704102631935,-264.96,0.00034164,2]
[309764155,1704102631945,-156.59,0.00034228,2]
[309764156,1704102631954,-164.78,0.00034228,2]
[309764157,1704102631964,-9172.98,0.00034236,2]
[309764158,1704102631973,-6105.61,0.00034239,2]
[309764161,1704102631990,-785.45486,0.00034247,15]
[309764163,1704102632004,-200.0,0.0003426,2]
[309764165,1704102632013,-4175.56,0.00034261,2]
[309764167,1704102632023,-173.45,0.00034268,2]
[309764169,1704102632032,-156.59,0.00034325,2]
[309764171,1704102632042,-194.52,0.00034356,2]
[309764173,1704102632051,-228.48,0.00034357,2]
[309764175,1704102632061,-158.82091954,0.000344,2]
[309764177,1704102632070,-156.59,0.00034423,2]
[309764179,1704102632079,-1568.488253,0.0003452,2]
[309764181,1704102632089,-156.59,0.00034521,2]
[309764182,1704102632100,-200.13,0.00034589,2]
[309764183,1704102632109,-156.59,0.00034618,2]
[309764184,1704102632119,-154.35,0.00034663,2]
[309764185,1704102632129,-156.59,0.00034716,2]
[309764186,1704102632138,-23880.0,0.00034722,2]
[309764187,1704102632149,-200.0,0.00034725,2]
[309764188,1704102632158,-206.0,0.00034731,11]
[309764189,1704102632168,-1403.88,0.00034739,2]
[309764190,1704102632179,-694.23,0.00034739,2]
[309764191,1704102632189,-186.83,0.00034745,2]
[309764192,1704102632199,-2352.73238,0.00034794,2]
[309764193,1704102632209,-156.59,0.00034814,2]
[309764194,1704102632219,-14244.34,0.00034827,2]
[309764195,1704102632229,-173.45,0.00034862,2]
[309764196,1704102632239,-735.04,0.00034867,2]
[309764197,1704102632250,-156.59,0.00034911,2]
[309764198,1704102632261,-3136.976507,0.00034931,2]
[309764199,1704102632271,-156.59,0.00035009,2]
[309764200,1704102632281,-3479.93342208,0.00035068,2]
[309764201,1704102632297,-441.28721192,0.00035068,2]
[309764202,1704102632307,-156.59,0.00035107,2]
[309764203,1704102632317,-161.3,0.00035155,2]
[309764204,1704102632327,-156.59,0.00035204,2]
[309764205,1704102632336,-154.35,0.00035231,2]
[309764206,1704102632346,-777.30273508,0.0003527,2]
[309764213,1704102637594,-555.59726492,0.0003527,2]
[309764214,1704102637604,-156.59,0.00035302,2]
[309764215,1704102637614,-199.96011606,0.00035311,2]
[309764216,1704102637625,-918.53187387,0.00035311,2]
[309764217,1704102637654,-271.70801007,0.00035311,2]
[309764218,1704102637664,-29.00395298,0.00035342,2]
[309764219,1704102637708,-5102.53264243,0.00035342,2]
[309764220,1704102637767,-358.17229259,0.00035342,2]
[309764221,1704102637776,-156.59,0.000354,2]
[309764222,1704102637786,-173.45,0.00035456,2]
[309764223,1704102637795,-156.59,0.00035497,2]
[309764224,1704102637804,-152.14,0.00035616,2]
[309764225,1704102637814,-509.03,0.00035626,2]
[309764226,1704102637823,-164.78,0.0003575,2]
[309764227,1704102637833,-154.35,0.000358,2]
[309764228,1704102637842,-1000.0,0.0003581,2]
[309764229,1704102637852,-170.8,0.00035998,2]
[309764230,1704102637862,-258.26,0.00036011,2]
[309764231,1704102637871,-173.45,0.0003605,2]
[309764232,1704102637880,-258.26,0.000362,2]
[309764233,1704102637890,-154.35,0.00036368,2]
[309764234,1704102637899,-258.26,0.0003639,2]
[309764235,1704102637908,-258.26,0.00036579,2]
[309764236,1704102637917,-157.65026118,0.00036698,2]
[309764237,1704102637927,-500.0,0.00036699,2]
[309764238,1704102637935,-1658.2795,0.00036699,2]
[309764239,1704102637945,-164.56,0.00036711,2]
[309764240,1704102637955,-258.26,0.00036769,2]
[309764241,1704102637965,-3033.45,0.00036777,2]
[309764242,1704102637974,-303.55554,0.00036798,2]
[309764243,1704102637983,-732.84,0.00036798,2]
[309764244,1704102637992,-486.55289172,0.00036798,2]
[309764245,1704102638001,-500.0,0.00036798,2]
[309764246,1704102638010,-500.0,0.00036798,2]
[309764247,1704102638019,-500.0,0.00036798,2]
[309764248,1704102638028,-315.1254303,0.00036798,2]
[309764249,1704102638038,-500.0,0.00036798,2]
[309764250,1704102638047,-276.80840545,0.00036798,2]
[309764251,1704102638056,-694.74,0.00036798,2]
[309764252,1704102638065,-534.07417732,0.00036798,2]
[309764253,1704102638074,-500.0,0.00036798,2]
[309764254,1704102638083,-500.0,0.00036798,2]
[309764255,1704102638092,-500.0,0.00036798,2]
[309764256,1704102638101,-500.0,0.00036798,2]
[309764257,1704102638110,-500.0,0.00036798,2]
[309764258,1704102638120,-500.0,0.00036798,2]
[309764259,1704102638130,-500.0,0.00036798,2]
[309764260,1704102638139,-500.0,0.00036798,2]
[309764261,1704102638148,-606.95,0.00036798,2]
[309764262,1704102638158,-572.2711416,0.00036798,2]
[309764263,1704102638167,-500.0,0.00036798,2]
[309764264,1704102638176,-500.0,0.00036798,2]
[309764265,1704102638185,-3341.46,0.00036798,5]
[309764266,1704102638195,-223.83270259,0.00036798,2]
[309764267,1704102638205,-500.0,0.00036798,2]
[309764268,1704102638215,-500.0,0.00036798,2]
[309764269,1704102638225,-500.0,0.00036798,2]
[309764270,1704102638234,-500.0,0.00036798,2]
[309764271,1704102638243,-500.0,0.00036798,2]
[309764272,1704102638253,-500.0,0.00036798,2]
[309764273,1704102638262,-500.0,0.00036798,2]
[309764274,1704102638271,-500.0,0.00036798,2]
[309764275,1704102638280,-56637.1499487,0.00036799,2]
[309764276,1704102638290,-200.13,0.00036852,2]
[309764277,1704102638299,-216.51,0.00036888,2]
[309764278,1704102638308,-500.0,0.00036897,2]
[309764279,1704102638317,-500.0,0.00036897,2]
[309764280,1704102638326,-500.0,0.00036897,2]
[309764281,1704102638336,-500.0,0.00036897,2]
[309764282,1704102638347,-500.0,0.00036897,2]
[309764283,1704102638357,-630.7,0.00036897,2]
[309764284,1704102638367,-500.0,0.00036897,2]
[309764285,1704102638377,-500.0,0.00036897,2]
[309764286,1704102638387,-500.0,0.00036897,2]
[309764287,1704102638396,-500.0,0.00036897,2]
[309764288,1704102638407,-211.66503606,0.00036897,2]
[309764289,1704102638417,-5847.48,0.00036897,5]
[309764290,1704102638427,-1463.92,0.00036897,2]
[309764291,1704102638437,-1041.13,0.00036897,2]
[309764292,1704102638447,-500.0,0.00036897,2]
[309764293,1704102638456,-500.0,0.00036897,2]
[309764294,1704102638467,-500.0,0.00036897,2]
[309764295,1704102638477,-3454.05,0.00036897,2]
[309764296,1704102638487,-171.68,0.00036897,2]
[309764297,1704102638498,-500.0,0.00036897,2]
[309764298,1704102638507,-500.0,0.00036897,2]
[309764299,1704102638517,-500.0,0.00036897,2]
[309764300,1704102638525,-500.0,0.00036897,2]
[309764301,1704102638535,-500.0,0.00036897,2]
[309764302,1704102638546,-503.25,0.00036897,2]
[309764303,1704102638555,-627.88179184,0.00036898,2]
[309764304,1704102638565,-500.0,0.00036898,2]
[309764305,1704102638575,-500.0,0.00036898,2]
[309764306,1704102638584,-500.0,0.00036898,2]
[309764307,1704102638594,-266.2,0.00036898,2]
[309764308,1704102638603,-500.0,0.00036898,2]
[309764309,1704102638613,-500.0,0.00036898,2]
[309764310,1704102638635,-500.0,0.00036898,2]
[309764311,1704102638645,-500.0,0.00036898,2]
[309764312,1704102638655,-500.0,0.00036898,2]
[309764313,1704102638664,-500.0,0.00036898,2]
[309764314,1704102638674,-547.35,0.00036898,2]
[309764315,1704102638683,-500.0,0.00036898,2]
[309764316,1704102638693,-500.0,0.00036898,2]
[309764317,1704102638704,-264.85925504,0.00036898,2]
[309764318,1704102638714,-378.65,0.00036898,2]
[309764319,1704102638723,-500.0,0.00036898,2]
[309764320,1704102638733,-315.93600803,0.00036898,2]
[309764321,1704102638743,-500.0,0.00036898,2]
[309764322,1704102638753,-500.0,0.00036898,2]
[309764323,1704102638763,-500.0,0.00036898,2]
[309764324,1704102638773,-500.0,0.00036898,2]
[309764325,1704102638783,-361.55,0.00036898,2]
[309764326,1704102638795,-500.0,0.00036898,2]
[309764327,1704102638804,-500.0,0.00036898,2]
[309764328,1704102638814,-478.85,0.00036898,2]
[309764329,1704102638823,-637.21323788,0.00036898,2]
[309764330,1704102638833,-500.0,0.00036898,2]
[309764331,1704102638843,-500.0,0.00036898,2]
[309764332,1704102638853,-500.0,0.00036898,2]
[309764333,1704102638863,-500.0,0.00036898,2]
[309764334,1704102638873,-500.0,0.00036898,2]
[309764335,1704102638883,-160.55,0.00036898,2]
[309764336,1704102638893,-151.77777,0.00036898,2]
[309764337,1704102638903,-500.0,0.00036898,2]
[309764338,1704102638913,-500.0,0.00036898,2]
[309764339,1704102638923,-500.0,0.00036898,2]
[309764340,1704102638932,-500.0,0.00036898,2]
[309764341,1704102638941,-500.0,0.00036898,2]
[309764342,1704102638952,-500.0,0.00036898,2]
[309764343,1704102638961,-153.4,0.00036898,2]
[309764344,1704102638971,-500.0,0.00036898,2]
[309764345,1704102638980,-228.25,0.00036898,2]
[309764346,1704102638990,-189.15,0.00036898,2]
[309764347,1704102639000,-500.0,0.00036898,2]
[309764348,1704102639009,-500.0,0.00036898,2]
[309764349,1704102639019,-186.9035364,0.00036898,2]
[309764350,1704102639030,-500.0,0.00036898,2]
[309764351,1704102639039,-500.0,0.00036898,2]
[309764352,1704102639048,-500.0,0.00036898,2]
[309764353,1704102639058,-500.0,0.00036898,2]
[309764354,1704102639067,-500.0,0.00036899,2]
[309764355,1704102639076,-500.0,0.00036899,2]
[309764356,1704102639085,-500.0,0.00036899,2]
[309764357,1704102639096,-500.0,0.00036899,2]
[309764358,1704102639106,-500.0,0.00036899,2]
[309764359,1704102639116,-154.35,0.00036936,2]
[309764360,1704102639125,-258.26,0.00036958,2]
[309764362,1704102639134,-406.5,0.00036959,2]
[309764364,1704102639143,-151.77777,0.00036998,2]
[309764365,1704102639152,-175.64,0.00037,2]
[309764366,1704102639161,-732.84,0.00037072,2]
[309764367,1704102639171,-500.0,0.00037072,2]
[309764368,1704102639180,-500.0,0.00037072,2]
[309764369,1704102639189,-500.0,0.00037072,2]
[309764370,1704102639199,-500.0,0.00037072,2]
[309764371,1704102639208,-694.74,0.00037072,2]
[309764372,1704102639443,-500.0,0.00037072,2]
[309764373,1704102639453,-500.0,0.00037072,2]
[309764374,1704102639463,-500.0,0.00037072,2]
[309764375,1704102639473,-500.0,0.00037072,2]
[309764376,1704102639482,-606.95,0.00037072,2]
[309764377,1704102639492,-500.0,0.00037072,2]
[309764378,1704102639503,-500.0,0.00037072,2]
[309764379,1704102639515,-3341.46,0.00037072,5]
[309764380,1704102639525,-344.35,0.00037072,2]
[309764381,1704102639535,-500.0,0.00037072,2]
[309764382,1704102639544,-500.0,0.00037072,2]
[309764383,1704102639554,-500.0,0.00037072,2]
[309764384,1704102639564,-500.0,0.00037072,2]
[309764385,1704102639574,-500.0,0.00037072,2]
[309764386,1704102639584,-500.0,0.00037072,2]
[309764387,1704102639594,-500.0,0.00037072,2]
[309764388,1704102639605,-602.7786,0.00037073,2]
[309764389,1704102639617,-151.77777,0.00037098,4]
[309764390,1704102639627,-152.14,0.000371,2]
[309764391,1704102639637,-258.26,0.00037148,2]
[309764392,1704102639646,-500.0,0.00037171,2]
[309764393,1704102639655,-500.0,0.00037171,2]
[309764394,1704102639665,-500.0,0.00037171,2]
[309764395,1704102639674,-630.7,0.00037171,2]
[309764396,1704102639684,-500.0,0.00037171,2]
[309764397,1704102639693,-500.0,0.00037171,2]
[309764398,1704102639703,-500.0,0.00037171,2]
[309764399,1704102639713,-500.0,0.00037171,2]
[309764400,1704102639722,-5847.48,0.00037171,5]
[309764401,1704102639732,-1463.92,0.00037171,2]
[309764402,1704102639741,-1041.13,0.00037171,2]
[309764403,1704102639750,-500.0,0.00037171,2]
[309764404,1704102639759,-500.0,0.00037171,2]
[309764405,1704102639768,-500.0,0.00037171,2]
[309764406,1704102639778,-3454.05,0.00037171,2]
[309764407,1704102639788,-500.0,0.00037171,2]
[309764408,1704102639798,-500.0,0.00037171,2]
[309764409,1704102639807,-500.0,0.00037171,2]
[309764410,1704102639817,-500.0,0.00037171,2]
[309764411,1704102639826,-500.0,0.00037172,2]
[309764412,1704102639836,-500.0,0.00037172,2]
[309764413,1704102639846,-500.0,0.00037172,2]
[309764414,1704102639856,-411.55,0.00037172,2]
[309764415,1704102639868,-265.9,0.00037172,2]
[309764416,1704102639877,-500.0,0.00037172,2]
[309764417,1704102639886,-500.0,0.00037172,2]
[309764418,1704102639896,-500.0,0.00037172,2]
[309764419,1704102639905,-478.67,0.00037172,2]
[309764420,1704102639914,-500.0,0.00037172,2]
[309764421,1704102639924,-500.0,0.00037172,2]
[309764422,1704102639933,-485.3,0.00037172,2]
[309764423,1704102639943,-150.25,0.00037172,2]
[309764424,1704102639953,-500.0,0.00037172,2]
[309764425,1704102639963,-500.0,0.00037172,2]
[309764426,1704102639972,-500.0,0.00037172,2]
[309764427,1704102639981,-500.0,0.00037172,2]
[309764428,1704102639991,-500.0,0.00037172,2]
[309764429,1704102640000,-500.0,0.00037172,2]
[309764430,1704102640009,-500.0,0.00037172,2]
[309764431,1704102640019,-500.0,0.00037172,2]
[309764432,1704102640028,-500.0,0.00037172,2]
[309764433,1704102640037,-500.0,0.00037172,2]
[309764434,1704102640047,-500.0,0.00037172,2]
[309764435,1704102640056,-617.2,0.00037172,2]
[309764436,1704102640066,-500.0,0.00037172,2]
[309764437,1704102640075,-500.0,0.00037172,2]
[309764438,1704102640084,-320.35879794,0.00037172,2]
[309764439,1704102640093,-500.0,0.00037172,2]
[309764440,1704102640102,-500.0,0.00037172,2]
[309764441,1704102640111,-500.0,0.00037172,2]
[309764442,1704102640120,-500.0,0.00037172,2]
[309764443,1704102640129,-254.15,0.00037172,2]
[309764444,1704102640138,-500.0,0.00037173,2]
[309764445,1704102640147,-500.0,0.00037173,2]
[309764446,1704102640157,-634.02325296,0.00037173,2]
[309764447,1704102640166,-500.0,0.00037173,2]
[309764448,1704102640175,-151.77777,0.00037198,4]
[309764449,1704102640184,-164.78,0.00037273,2]
[309764450,1704102640194,-151.77777,0.00037298,4]
[309764451,1704102640203,-258.26,0.00037337,2]
[309764452,1704102640212,-732.84,0.00037346,2]
[309764453,1704102640222,-500.0,0.00037346,2]
[309764454,1704102640230,-500.0,0.00037346,2]
[309764455,1704102640240,-500.0,0.00037346,2]
[309764456,1704102640249,-500.0,0.00037346,2]
[309764457,1704102640258,-694.74,0.00037346,2]
[309764458,1704102640268,-500.0,0.00037346,2]
[309764459,1704102640277,-500.0,0.00037346,2]
[309764460,1704102640286,-500.0,0.00037346,2]
[309764461,1704102640295,-500.0,0.00037346,2]
[309764462,1704102640305,-606.95,0.00037346,2]
[309764463,1704102640314,-500.0,0.00037346,2]
[309764464,1704102640324,-500.0,0.00037346,2]
[309764465,1704102640333,-3341.46,0.00037346,5]
[309764466,1704102640342,-500.0,0.00037346,2]
[309764467,1704102640352,-500.0,0.00037346,2]
[309764468,1704102640362,-500.0,0.00037346,2]
[309764469,1704102640371,-500.0,0.00037346,2]
[309764470,1704102640380,-500.0,0.00037346,2]
[309764471,1704102640389,-500.0,0.00037346,2]
[309764472,1704102640399,-399.29407449,0.00037373,9]
[309764473,1704102640408,-476.14903056,0.00037373,9]
[309764474,1704102640417,-4007.9957826,0.00037373,9]
[309764475,1704102640427,-203.89851866,0.00037373,9]
[309764476,1704102640436,-763.15258116,0.00037373,9]
[309764477,1704102640445,-1000.0,0.00037373,10]
[309764478,1704102640455,-534.56849037,0.00037373,9]
[309764479,1704102640465,-200.92452587,0.00037373,9]
[309764480,1704102640474,-193.18785398,0.00037373,9]
[309764481,1704102640484,-1000.0,0.00037373,10]
[309764482,1704102640494,-283.39103028,0.00037373,9]
[309764483,1704102640512,-287.89833158,0.00037373,9]
[309764484,1704102640525,-200.0,0.00037396,2]
[309764485,1704102640534,-303.55554,0.00037398,4]
[309764486,1704102640544,-500.0,0.00037445,2]
[309764487,1704102640554,-500.0,0.00037445,2]
[309764488,1704102640564,-630.7,0.00037445,2]
[309764489,1704102640574,-500.0,0.00037445,2]
[309764490,1704102640584,-500.0,0.00037445,2]
[309764491,1704102640593,-500.0,0.00037445,2]
[309764492,1704102640603,-500.0,0.00037445,2]
[309764493,1704102640613,-5847.48,0.00037445,5]
[309764494,1704102640623,-1463.92,0.00037445,2]
[309764495,1704102640633,-1041.13,0.00037445,2]
[309764496,1704102640643,-500.0,0.00037445,2]
[309764497,1704102640653,-500.0,0.00037445,2]
[309764498,1704102640663,-220.25,0.00037445,2]
[309764499,1704102640674,-3454.05,0.00037445,2]
[309764500,1704102640684,-500.0,0.00037445,2]
[309764501,1704102640694,-500.0,0.00037445,2]
[309764502,1704102640704,-377.5,0.00037445,2]
[309764503,1704102640714,-500.0,0.00037445,2]
[309764504,1704102640723,-500.0,0.00037446,2]
[309764505,1704102640734,-500.0,0.00037446,2]
[309764506,1704102640743,-500.0,0.00037446,2]
[309764507,1704102640754,-151.5374001,0.00037446,2]
[309764508,1704102640763,-479.4,0.00037446,2]
[309764509,1704102640773,-500.0,0.00037446,2]
[309764510,1704102640783,-254.05,0.00037446,2]
[309764511,1704102640794,-500.0,0.00037446,2]
[309764512,1704102640804,-500.0,0.00037446,2]
[309764513,1704102640814,-500.0,0.00037446,2]
[309764514,1704102640824,-500.0,0.00037446,2]
[309764515,1704102640834,-500.0,0.00037446,2]
[309764516,1704102640844,-287.1296259,0.00037446,2]
[309764517,1704102640854,-560.08052742,0.00037446,2]
[309764518,1704102640865,-500.0,0.00037446,2]
[309764519,1704102640875,-500.0,0.00037446,2]
[309764520,1704102640885,-500.0,0.00037446,2]
[309764521,1704102640895,-472.85402995,0.00037446,2]
[309764522,1704102640905,-384.55,0.00037446,2]
[309764523,1704102640915,-500.0,0.00037446,2]
[309764524,1704102640925,-500.0,0.00037446,2]
[309764525,1704102640934,-195.75,0.00037446,2]
[309764526,1704102640944,-500.0,0.00037446,2]
[309764527,1704102640954,-500.0,0.00037446,2]